[Event "*** SCC Grand Prix: Titled Tuesday Blitz"]
[Site "Chess.com"]
[Date "2020.07.14"]
[Round "2"]
[White "SzMM19"]
[Black "SuperMagnum"]
[Result "0-1"]
[WhiteElo "2579"]
[BlackElo "2175"]
[TimeControl "180+1"]
[EndTime "10:15:35 PDT"]
[Termination "SuperMagnum won by resignation"]

1. e4 {[%clk 0:03:00.9]} 1... c5 {[%clk 0:02:57.5]} 2. Nf3 {[%clk 0:03:01]} 2...
d6 {[%clk 0:02:57.3]} 3. Bb5+ {[%clk 0:03:01.1]} 3... Nd7 {[%clk 0:02:53.9]} 4.
O-O {[%clk 0:02:59.7]} 4... a6 {[%clk 0:02:51.7]} 5. Bd3 {[%clk 0:03:00.2]} 5...
g6 {[%clk 0:02:49.2]} 6. c3 {[%clk 0:03:00.2]} 6... Bg7 {[%clk 0:02:49.4]} 7.
Re1 {[%clk 0:03:00.5]} 7... Ngf6 {[%clk 0:02:49.9]} 8. Bc2 {[%clk 0:02:59.9]}
8... O-O {[%clk 0:02:50.5]} 9. d4 {[%clk 0:03:00]} 9... cxd4 {[%clk 0:02:51.2]}
10. cxd4 {[%clk 0:03:00.9]} 10... e5 {[%clk 0:02:51.8]} 11. Nc3 {[%clk
0:02:58.6]} 11... b5 {[%clk 0:02:50.1]} 12. Bg5 {[%clk 0:02:55.3]} 12... Bb7
{[%clk 0:02:47.8]} 13. Bb3 {[%clk 0:02:51.3]} 13... exd4 {[%clk 0:02:43.4]} 14.
Qxd4 {[%clk 0:02:50.2]} 14... Qb6 {[%clk 0:02:35.3]} 15. Qxb6 {[%clk 0:02:39.2]}
15... Nxb6 {[%clk 0:02:27.6]} 16. Rad1 {[%clk 0:02:39.7]} 16... b4 {[%clk
0:02:23]} 17. Rxd6 {[%clk 0:02:19]} 17... bxc3 {[%clk 0:02:10.6]} 18. Bxf6
{[%clk 0:02:13.9]} 18... Bxf6 {[%clk 0:02:07.7]} 19. Rxb6 {[%clk 0:02:13.8]}
19... cxb2 {[%clk 0:02:01.4]} 20. Rxb7 {[%clk 0:02:01.6]} 20... Rac8 {[%clk
0:01:58.4]} 21. e5 {[%clk 0:01:58.6]} 21... Rc1 {[%clk 0:01:55]} 22. Bd5 {[%clk
0:01:12.6]} 22... Bxe5 {[%clk 0:01:48.9]} 23. Kf1 {[%clk 0:01:12.8]} 23... Bc3
{[%clk 0:01:45]} 24. Be4 {[%clk 0:01:01.3]} 24... Bxe1 {[%clk 0:01:43.9]} 25.
Nxe1 {[%clk 0:01:01.8]} 25... Re8 {[%clk 0:01:44.3]} 26. f3 {[%clk 0:01:01.9]}
26... Rxe4 {[%clk 0:01:41.5]} 27. fxe4 {[%clk 0:00:55]} 27... b1=Q {[%clk
0:01:41.5]} 28. Rxb1 {[%clk 0:00:54.9]} 28... Rxb1 {[%clk 0:01:42.4]} 29. Ke2
{[%clk 0:00:53]} 29... Rb2+ {[%clk 0:01:42.1]} 30. Ke3 {[%clk 0:00:53.6]} 30...
Rxa2 {[%clk 0:01:42.6]} 31. h4 {[%clk 0:00:54.5]} 31... a5 {[%clk 0:01:41.6]}
32. g4 {[%clk 0:00:53.7]} 32... a4 {[%clk 0:01:40.7]} 33. Nd3 {[%clk 0:00:53.8]}
33... a3 {[%clk 0:01:40.7]} 0-1

[Event "*** SCC Grand Prix: Titled Tuesday Blitz"]
[Site "Chess.com"]
[Date "2020.07.14"]
[Round "2"]
[White "Jbd735"]
[Black "kidagent"]
[Result "1-0"]
[WhiteElo "2439"]
[BlackElo "2222"]
[TimeControl "180+1"]
[EndTime "10:15:41 PDT"]
[Termination "Jbd735 won by resignation"]

1. e4 {[%clk 0:03:00.9]} 1... c5 {[%clk 0:02:59.1]} 2. Nf3 {[%clk 0:03:01]} 2...
d6 {[%clk 0:02:58.9]} 3. d4 {[%clk 0:03:01.1]} 3... cxd4 {[%clk 0:02:59.2]} 4.
Nxd4 {[%clk 0:03:02]} 4... Nf6 {[%clk 0:02:58.9]} 5. Nc3 {[%clk 0:03:02.5]} 5...
a6 {[%clk 0:02:58.7]} 6. Bg5 {[%clk 0:03:02.3]} 6... e6 {[%clk 0:02:58.4]} 7. f4
{[%clk 0:03:02.3]} 7... b5 {[%clk 0:02:57.2]} 8. Qe2 {[%clk 0:03:01.8]} 8... Be7
{[%clk 0:02:45.6]} 9. O-O-O {[%clk 0:03:01.1]} 9... Bb7 {[%clk 0:02:41.3]} 10.
e5 {[%clk 0:03:00]} 10... Nd5 {[%clk 0:02:33]} 11. Ne4 {[%clk 0:02:30.8]} 11...
dxe5 {[%clk 0:02:28.1]} 12. Bxe7 {[%clk 0:02:29.1]} 12... Qxe7 {[%clk
0:02:26.4]} 13. fxe5 {[%clk 0:02:27.2]} 13... O-O {[%clk 0:02:22]} 14. Qh5
{[%clk 0:01:44.5]} 14... Nf4 {[%clk 0:02:11.5]} 15. Qg4 {[%clk 0:01:40.9]} 15...
Bxe4 {[%clk 0:02:05.6]} 16. Qxf4 {[%clk 0:01:40.7]} 16... Bd5 {[%clk 0:02:05.3]}
17. Nf5 {[%clk 0:01:36.8]} 17... exf5 {[%clk 0:01:47.1]} 18. Rxd5 {[%clk
0:01:36.2]} 18... Qe6 {[%clk 0:01:45.8]} 19. Qd2 {[%clk 0:01:07.9]} 19... Ra7
{[%clk 0:01:43.8]} 20. Be2 {[%clk 0:01:05.8]} 20... Rd7 {[%clk 0:01:42.8]} 21.
Rd1 {[%clk 0:01:04]} 21... Rfd8 {[%clk 0:01:39.3]} 22. Bf3 {[%clk 0:01:01.9]}
22... Rxd5 {[%clk 0:01:33.7]} 23. Bxd5 {[%clk 0:01:01.4]} 1-0

[Event "*** SCC Grand Prix: Titled Tuesday Blitz"]
[Site "Chess.com"]
[Date "2020.07.14"]
[Round "2"]
[White "romulocardoso"]
[Black "Ave_Mariia"]
[Result "0-1"]
[WhiteElo "2091"]
[BlackElo "2385"]
[TimeControl "180+1"]
[EndTime "10:15:42 PDT"]
[Termination "Ave_Mariia won by checkmate"]

1. e4 {[%clk 0:03:00.9]} 1... c5 {[%clk 0:02:58.5]} 2. Nf3 {[%clk 0:03:00.8]}
2... d6 {[%clk 0:02:58.3]} 3. d4 {[%clk 0:03:01.7]} 3... cxd4 {[%clk 0:02:57.8]}
4. Nxd4 {[%clk 0:03:02.6]} 4... Nf6 {[%clk 0:02:58.5]} 5. Nc3 {[%clk 0:03:02.8]}
5... g6 {[%clk 0:02:59.2]} 6. Be3 {[%clk 0:03:02.9]} 6... Bg7 {[%clk 0:02:58.9]}
7. f3 {[%clk 0:03:03.5]} 7... O-O {[%clk 0:02:57.8]} 8. Qd2 {[%clk 0:03:04.1]}
8... Nc6 {[%clk 0:02:58.4]} 9. O-O-O {[%clk 0:03:04.4]} 9... d5 {[%clk
0:02:58.4]} 10. Nxc6 {[%clk 0:03:01.7]} 10... bxc6 {[%clk 0:02:55.5]} 11. exd5
{[%clk 0:03:02.2]} 11... cxd5 {[%clk 0:02:52.6]} 12. Nxd5 {[%clk 0:03:03.1]}
12... Nxd5 {[%clk 0:02:51.6]} 13. Qxd5 {[%clk 0:03:04]} 13... Qc7 {[%clk
0:02:51.9]} 14. Qc5 {[%clk 0:03:04.3]} 14... Qb7 {[%clk 0:02:27.9]} 15. Bd4
{[%clk 0:02:59.1]} 15... Bf5 {[%clk 0:02:24.6]} 16. Qb5 {[%clk 0:02:58]} 16...
Qc7 {[%clk 0:01:59.6]} 17. Qc5 {[%clk 0:02:51.8]} 17... Qf4+ {[%clk 0:01:56.5]}
18. Be3 {[%clk 0:02:51.8]} 18... Qa4 {[%clk 0:01:56.6]} 19. Qc4 {[%clk
0:02:38.2]} 19... Qa5 {[%clk 0:01:43.3]} 20. Bd2 {[%clk 0:02:16.4]} 20... Qe5
{[%clk 0:01:19.7]} 21. Bc3 {[%clk 0:02:12.3]} 21... Qe3+ {[%clk 0:01:19.8]} 22.
Bd2 {[%clk 0:02:12.3]} 22... Qb6 {[%clk 0:01:17.4]} 23. Qb4 {[%clk 0:02:11]}
23... Rfc8 {[%clk 0:01:14.7]} 24. c4 {[%clk 0:01:57.4]} 24... Qf2 {[%clk
0:01:08]} 25. Qxe7 {[%clk 0:01:23.1]} 25... Rab8 {[%clk 0:01:02]} 26. b3 {[%clk
0:01:16.8]} 26... Qd4 {[%clk 0:00:56.4]} 27. Qa3 {[%clk 0:01:12.3]} 27... Qa1#
{[%clk 0:00:55.3]} 0-1

[Event "*** SCC Grand Prix: Titled Tuesday Blitz"]
[Site "Chess.com"]
[Date "2020.07.14"]
[Round "2"]
[White "Dr_crypt"]
[Black "grandcoach"]
[Result "1-0"]
[WhiteElo "2401"]
[BlackElo "2113"]
[TimeControl "180+1"]
[EndTime "10:15:49 PDT"]
[Termination "Dr_crypt won on time"]

1. d4 {[%clk 0:03:00.9]} 1... Nf6 {[%clk 0:02:59.2]} 2. Nf3 {[%clk 0:03:00.6]}
2... d5 {[%clk 0:02:55.3]} 3. c4 {[%clk 0:02:59.4]} 3... e6 {[%clk 0:02:53.9]}
4. Nc3 {[%clk 0:02:59.1]} 4... c5 {[%clk 0:02:54.1]} 5. e3 {[%clk 0:02:56]} 5...
Nc6 {[%clk 0:02:53]} 6. dxc5 {[%clk 0:02:50.4]} 6... Bxc5 {[%clk 0:02:50.6]} 7.
cxd5 {[%clk 0:02:50.2]} 7... exd5 {[%clk 0:02:50.6]} 8. Be2 {[%clk 0:02:50]}
8... O-O {[%clk 0:02:49.6]} 9. O-O {[%clk 0:02:50.1]} 9... Be6 {[%clk
0:02:39.3]} 10. Nb5 {[%clk 0:02:48.5]} 10... a6 {[%clk 0:02:28.8]} 11. Nbd4
{[%clk 0:02:48.1]} 11... Qd6 {[%clk 0:02:23.4]} 12. b3 {[%clk 0:02:45.1]} 12...
Rad8 {[%clk 0:02:19.7]} 13. Bb2 {[%clk 0:02:44.6]} 13... Ba7 {[%clk 0:02:20.2]}
14. Rc1 {[%clk 0:02:42.3]} 14... Bb8 {[%clk 0:02:17.6]} 15. Nxc6 {[%clk
0:02:38.8]} 15... bxc6 {[%clk 0:02:15.8]} 16. Bxf6 {[%clk 0:02:30.4]} 16... gxf6
{[%clk 0:01:50.9]} 17. Qd4 {[%clk 0:02:29.7]} 17... Bf5 {[%clk 0:01:36.9]} 18.
Rfd1 {[%clk 0:02:20.4]} 18... Be4 {[%clk 0:01:35.3]} 19. g3 {[%clk 0:02:18.3]}
19... Rd7 {[%clk 0:01:11.4]} 20. Qb6 {[%clk 0:02:14.9]} 20... Ba7 {[%clk
0:00:19.4]} 21. Qxc6 {[%clk 0:02:13.7]} 21... Qe7 {[%clk 0:00:15.6]} 22. Qxa6
{[%clk 0:02:08]} 22... Rfd8 {[%clk 0:00:13.6]} 23. Nd4 {[%clk 0:02:04.6]} 23...
Qe5 {[%clk 0:00:04.3]} 24. Rc8 {[%clk 0:01:57.2]} 24... Rxc8 {[%clk 0:00:02.2]}
25. Qxc8+ {[%clk 0:01:56.5]} 1-0

[Event "*** SCC Grand Prix: Titled Tuesday Blitz"]
[Site "Chess.com"]
[Date "2020.07.14"]
[Round "2"]
[White "louis198"]
[Black "Sanan_Sjugirov"]
[Result "0-1"]
[WhiteElo "2570"]
[BlackElo "2976"]
[TimeControl "180+1"]
[EndTime "10:15:54 PDT"]
[Termination "Sanan_Sjugirov won by resignation"]

1. d4 {[%clk 0:03:00.9]} 1... Nf6 {[%clk 0:02:59.3]} 2. Bf4 {[%clk 0:03:00.7]}
2... e6 {[%clk 0:02:57.6]} 3. e3 {[%clk 0:03:01.1]} 3... c5 {[%clk 0:02:53.8]}
4. Nd2 {[%clk 0:02:55.8]} 4... cxd4 {[%clk 0:02:52.8]} 5. exd4 {[%clk
0:02:55.7]} 5... b6 {[%clk 0:02:53.3]} 6. h3 {[%clk 0:02:51.2]} 6... Bb7 {[%clk
0:02:52.8]} 7. Ngf3 {[%clk 0:02:51.5]} 7... Be7 {[%clk 0:02:52]} 8. c3 {[%clk
0:02:50.9]} 8... d6 {[%clk 0:02:51.9]} 9. Bc4 {[%clk 0:02:50.3]} 9... Nbd7
{[%clk 0:02:51]} 10. O-O {[%clk 0:02:50.5]} 10... O-O {[%clk 0:02:50.7]} 11. Qe2
{[%clk 0:02:50.6]} 11... Re8 {[%clk 0:02:50.5]} 12. a4 {[%clk 0:02:50.3]} 12...
a6 {[%clk 0:02:49.4]} 13. Rfe1 {[%clk 0:02:12.3]} 13... Bf8 {[%clk 0:02:46.5]}
14. Bh2 {[%clk 0:02:11.5]} 14... h6 {[%clk 0:02:45.2]} 15. Rac1 {[%clk
0:02:09.3]} 15... Qc7 {[%clk 0:02:40.8]} 16. Bb3 {[%clk 0:02:06.3]} 16... Bc6
{[%clk 0:02:36.9]} 17. c4 {[%clk 0:02:03.9]} 17... Qb7 {[%clk 0:02:36]} 18. Qd3
{[%clk 0:01:53.6]} 18... b5 {[%clk 0:02:20.6]} 19. axb5 {[%clk 0:01:42.8]} 19...
axb5 {[%clk 0:02:21.5]} 20. cxb5 {[%clk 0:01:43.3]} 20... Bxb5 {[%clk
0:02:20.4]} 21. Bc4 {[%clk 0:01:43.5]} 21... Bxc4 {[%clk 0:02:14.1]} 22. Nxc4
{[%clk 0:01:43.5]} 22... d5 {[%clk 0:02:12.6]} 23. Nce5 {[%clk 0:01:43.3]} 23...
Nxe5 {[%clk 0:02:06.5]} 24. Nxe5 {[%clk 0:01:42.3]} 24... Qxb2 {[%clk 0:01:54]}
25. Rc7 {[%clk 0:01:40.1]} 25... Ra1 {[%clk 0:01:50.8]} 26. Rd1 {[%clk
0:01:27.5]} 26... Rea8 {[%clk 0:01:47.1]} 27. Rc2 {[%clk 0:00:19.2]} 27... Rxd1+
{[%clk 0:01:43.6]} 28. Qxd1 {[%clk 0:00:19.4]} 28... Ra1 {[%clk 0:01:43.4]} 0-1

[Event "*** SCC Grand Prix: Titled Tuesday Blitz"]
[Site "Chess.com"]
[Date "2020.07.14"]
[Round "2"]
[White "RusPakhom"]
[Black "Caterpiller35"]
[Result "0-1"]
[WhiteElo "2265"]
[BlackElo "2459"]
[TimeControl "180+1"]
[EndTime "10:15:55 PDT"]
[Termination "Caterpiller35 won by resignation"]

1. e4 {[%clk 0:03:00.9]} 1... c5 {[%clk 0:02:59.9]} 2. c3 {[%clk 0:03:00.1]}
2... Nf6 {[%clk 0:02:59.4]} 3. e5 {[%clk 0:02:59.3]} 3... Nd5 {[%clk 0:03:00]}
4. d4 {[%clk 0:02:59.4]} 4... cxd4 {[%clk 0:03:00.9]} 5. Nf3 {[%clk 0:02:58.9]}
5... d6 {[%clk 0:03:01]} 6. Bc4 {[%clk 0:02:57.3]} 6... e6 {[%clk 0:03:01]} 7.
cxd4 {[%clk 0:02:56.5]} 7... Nc6 {[%clk 0:03:00.6]} 8. O-O {[%clk 0:02:55.4]}
8... Be7 {[%clk 0:03:00.6]} 9. Qe2 {[%clk 0:02:55.7]} 9... O-O {[%clk
0:03:00.3]} 10. Nc3 {[%clk 0:02:56]} 10... Nxc3 {[%clk 0:02:59.7]} 11. bxc3
{[%clk 0:02:56]} 11... dxe5 {[%clk 0:02:58.1]} 12. dxe5 {[%clk 0:02:55.6]} 12...
Qa5 {[%clk 0:02:58.6]} 13. Bd2 {[%clk 0:02:54.6]} 13... Rd8 {[%clk 0:02:58.2]}
14. Rfd1 {[%clk 0:02:52.7]} 14... Bd7 {[%clk 0:02:58]} 15. Bd3 {[%clk
0:02:52.6]} 15... Be8 {[%clk 0:02:56.5]} 16. Qe4 {[%clk 0:02:52.6]} 16... g6
{[%clk 0:02:56.3]} 17. c4 {[%clk 0:02:30.2]} 17... Qc7 {[%clk 0:02:40.3]} 18.
Be3 {[%clk 0:02:18.6]} 18... Nb4 {[%clk 0:02:22.3]} 19. Be2 {[%clk 0:02:14.2]}
19... Bc6 {[%clk 0:02:17.5]} 20. Qf4 {[%clk 0:02:09.7]} 20... Nc2 {[%clk
0:02:13]} 21. Nd4 {[%clk 0:01:48.5]} 21... Nxa1 {[%clk 0:02:00.4]} 22. Rxa1
{[%clk 0:01:48.3]} 22... Bf8 {[%clk 0:01:51.8]} 23. Nxc6 {[%clk 0:01:42.6]}
23... Qxc6 {[%clk 0:01:50.6]} 24. Rb1 {[%clk 0:01:41.1]} 24... Rd7 {[%clk
0:01:34.8]} 25. h4 {[%clk 0:01:34.8]} 25... Rad8 {[%clk 0:01:31.6]} 26. h5
{[%clk 0:01:31]} 26... b6 {[%clk 0:01:29.7]} 27. c5 {[%clk 0:01:24.6]} 27...
Bxc5 {[%clk 0:01:25.8]} 28. Bb5 {[%clk 0:01:23.2]} 28... Bxe3 {[%clk 0:01:15.4]}
29. Qxe3 {[%clk 0:01:18.6]} 29... Qc2 {[%clk 0:01:07]} 30. Rc1 {[%clk
0:01:14.1]} 30... Qxc1+ {[%clk 0:01:06.4]} 31. Qxc1 {[%clk 0:01:12.7]} 31...
Rd1+ {[%clk 0:01:07.3]} 32. Qxd1 {[%clk 0:01:12.3]} 32... Rxd1+ {[%clk
0:01:08.2]} 0-1

[Event "*** SCC Grand Prix: Titled Tuesday Blitz"]
[Site "Chess.com"]
[Date "2020.07.14"]
[Round "2"]
[White "Stosk"]
[Black "NikolaGry"]
[Result "0-1"]
[WhiteElo "2345"]
[BlackElo "2637"]
[TimeControl "180+1"]
[EndTime "10:15:59 PDT"]
[Termination "NikolaGry won by resignation"]

1. e4 {[%clk 0:03:00.9]} 1... d5 {[%clk 0:02:59.7]} 2. exd5 {[%clk 0:03:00.1]}
2... Nf6 {[%clk 0:02:59.3]} 3. d4 {[%clk 0:02:57.3]} 3... Nxd5 {[%clk
0:02:59.1]} 4. c4 {[%clk 0:02:57.4]} 4... Nb6 {[%clk 0:02:59.1]} 5. Nf3 {[%clk
0:02:57.9]} 5... g6 {[%clk 0:02:58.7]} 6. Nc3 {[%clk 0:02:57.6]} 6... Bg7 {[%clk
0:02:58.6]} 7. Be3 {[%clk 0:02:58.2]} 7... O-O {[%clk 0:02:58]} 8. h3 {[%clk
0:02:57.6]} 8... Nc6 {[%clk 0:02:57.8]} 9. Be2 {[%clk 0:02:57.9]} 9... e5 {[%clk
0:02:57.9]} 10. d5 {[%clk 0:02:57.9]} 10... Ne7 {[%clk 0:02:58]} 11. O-O {[%clk
0:02:57]} 11... Nf5 {[%clk 0:02:58.1]} 12. c5 {[%clk 0:02:55.7]} 12... Nd7
{[%clk 0:02:51.3]} 13. c6 {[%clk 0:02:37.5]} 13... Nxe3 {[%clk 0:02:46.1]} 14.
fxe3 {[%clk 0:02:35.6]} 14... Nb6 {[%clk 0:02:36.5]} 15. e4 {[%clk 0:02:32.7]}
15... f5 {[%clk 0:02:14.7]} 16. Qb3 {[%clk 0:02:28.4]} 16... Kh8 {[%clk
0:02:11.5]} 17. Rad1 {[%clk 0:02:26.7]} 17... Qe7 {[%clk 0:01:59.9]} 18. a4
{[%clk 0:02:08.6]} 18... bxc6 {[%clk 0:01:08.6]} 19. dxc6 {[%clk 0:02:04.8]}
19... Be6 {[%clk 0:01:05.6]} 20. Nd5 {[%clk 0:01:58]} 20... fxe4 {[%clk
0:00:53.6]} 21. Nxe7 {[%clk 0:01:40.3]} 21... Bxb3 {[%clk 0:00:52.4]} 22. Ng5
{[%clk 0:01:40.8]} 22... Bxd1 {[%clk 0:00:46.6]} 23. Rxd1 {[%clk 0:01:38.6]}
23... Bf6 {[%clk 0:00:42.7]} 24. Ne6 {[%clk 0:01:37.5]} 24... Bxe7 {[%clk
0:00:42]} 25. Nxf8 {[%clk 0:01:38.1]} 25... Rxf8 {[%clk 0:00:36.9]} 26. a5
{[%clk 0:01:38.5]} 26... Na4 {[%clk 0:00:30.1]} 27. Rd7 {[%clk 0:01:38]} 27...
Bd6 {[%clk 0:00:28.9]} 28. b3 {[%clk 0:01:34.4]} 28... Nc5 {[%clk 0:00:28.7]}
0-1

[Event "*** SCC Grand Prix: Titled Tuesday Blitz"]
[Site "Chess.com"]
[Date "2020.07.14"]
[Round "2"]
[White "SameerMujumdar"]
[Black "pooh2012"]
[Result "1-0"]
[WhiteElo "2290"]
[BlackElo "2479"]
[TimeControl "180+1"]
[EndTime "10:16:04 PDT"]
[Termination "SameerMujumdar won by resignation"]

1. d4 {[%clk 0:03:00.9]} 1... Nf6 {[%clk 0:02:59.2]} 2. c4 {[%clk 0:03:00.1]}
2... e6 {[%clk 0:02:58.9]} 3. Nc3 {[%clk 0:02:58.7]} 3... Bb4 {[%clk 0:02:58.3]}
4. Nf3 {[%clk 0:02:59.1]} 4... O-O {[%clk 0:02:54]} 5. Bg5 {[%clk 0:02:59.5]}
5... c5 {[%clk 0:02:53.7]} 6. dxc5 {[%clk 0:02:58.7]} 6... Na6 {[%clk
0:02:50.3]} 7. Rc1 {[%clk 0:02:57]} 7... Nxc5 {[%clk 0:02:48.1]} 8. e3 {[%clk
0:02:34.7]} 8... Nce4 {[%clk 0:02:41.7]} 9. Bh4 {[%clk 0:02:34.3]} 9... Qa5
{[%clk 0:02:39.9]} 10. Qc2 {[%clk 0:02:28.7]} 10... Qxa2 {[%clk 0:02:24.3]} 11.
Bxf6 {[%clk 0:02:24.7]} 11... Nxf6 {[%clk 0:02:18.6]} 12. Bd3 {[%clk 0:02:24.5]}
12... Qa5 {[%clk 0:02:08.2]} 13. O-O {[%clk 0:02:21.5]} 13... a6 {[%clk
0:01:52.9]} 14. Ne4 {[%clk 0:02:18.6]} 14... Nxe4 {[%clk 0:01:48.7]} 15. Bxe4
{[%clk 0:02:19.5]} 15... f5 {[%clk 0:01:49]} 16. Bd3 {[%clk 0:02:16.1]} 16...
Qc7 {[%clk 0:01:44.7]} 17. c5 {[%clk 0:02:07.7]} 17... b6 {[%clk 0:01:35.4]} 18.
Qa4 {[%clk 0:01:57.6]} 18... a5 {[%clk 0:01:13.3]} 19. cxb6 {[%clk 0:01:56.8]}
19... Qxb6 {[%clk 0:01:14.2]} 20. Ne5 {[%clk 0:01:56.9]} 20... Ra7 {[%clk
0:01:06.5]} 21. Bb5 {[%clk 0:01:54.4]} 21... d6 {[%clk 0:00:53.4]} 22. Nc6
{[%clk 0:01:49.4]} 22... Rc7 {[%clk 0:00:53.2]} 23. Nxb4 {[%clk 0:01:47.3]}
23... axb4 {[%clk 0:00:54.1]} 24. Rxc7 {[%clk 0:01:46.1]} 24... Qxc7 {[%clk
0:00:53.3]} 25. Qxb4 {[%clk 0:01:47]} 25... Bb7 {[%clk 0:00:50.1]} 26. Bc4
{[%clk 0:01:43.8]} 26... d5 {[%clk 0:00:45]} 27. Bd3 {[%clk 0:01:42.7]} 27...
Rc8 {[%clk 0:00:39.9]} 28. h3 {[%clk 0:01:38.9]} 28... Kf7 {[%clk 0:00:33.3]}
29. Ra1 {[%clk 0:01:37.5]} 29... Qe7 {[%clk 0:00:33.1]} 30. Qxe7+ {[%clk
0:01:34.5]} 30... Kxe7 {[%clk 0:00:23.7]} 31. Ra7 {[%clk 0:01:35.4]} 31... Rb8
{[%clk 0:00:23.3]} 32. Ba6 {[%clk 0:01:35.2]} 32... Kd6 {[%clk 0:00:23]} 33.
Rxb7 {[%clk 0:01:35.5]} 33... Rc8 {[%clk 0:00:23.2]} 34. Rb6+ {[%clk 0:01:34.9]}
34... Ke5 {[%clk 0:00:21.4]} 35. Bxc8 {[%clk 0:01:34.7]} 1-0

[Event "*** SCC Grand Prix: Titled Tuesday Blitz"]
[Site "Chess.com"]
[Date "2020.07.14"]
[Round "2"]
[White "davigator"]
[Black "jucAxx"]
[Result "1-0"]
[WhiteElo "2363"]
[BlackElo "2039"]
[TimeControl "180+1"]
[EndTime "10:16:04 PDT"]
[Termination "davigator won by checkmate"]

1. e4 {[%clk 0:03:00.9]} 1... e6 {[%clk 0:02:59.7]} 2. d4 {[%clk 0:02:49.3]}
2... d5 {[%clk 0:02:56.9]} 3. Nc3 {[%clk 0:02:49.5]} 3... Bb4 {[%clk 0:02:56.6]}
4. e5 {[%clk 0:02:49.9]} 4... c5 {[%clk 0:02:56.3]} 5. a3 {[%clk 0:02:50.2]}
5... Bxc3+ {[%clk 0:02:56.7]} 6. bxc3 {[%clk 0:02:50.2]} 6... Qc7 {[%clk
0:02:57.4]} 7. Qg4 {[%clk 0:02:50.5]} 7... Ne7 {[%clk 0:02:57.6]} 8. Qxg7 {[%clk
0:02:50.2]} 8... Rg8 {[%clk 0:02:58.3]} 9. Qxh7 {[%clk 0:02:50.4]} 9... cxd4
{[%clk 0:02:59]} 10. Ne2 {[%clk 0:02:50.8]} 10... Nbc6 {[%clk 0:02:58.4]} 11. f4
{[%clk 0:02:51]} 11... dxc3 {[%clk 0:02:57.6]} 12. Qd3 {[%clk 0:02:49.8]} 12...
Bd7 {[%clk 0:02:57.9]} 13. Nxc3 {[%clk 0:02:49.5]} 13... a6 {[%clk 0:02:57]} 14.
Ne2 {[%clk 0:02:49.2]} 14... O-O-O {[%clk 0:02:56.4]} 15. Bd2 {[%clk 0:02:48.8]}
15... Nf5 {[%clk 0:02:54.8]} 16. g3 {[%clk 0:02:44.7]} 16... Na7 {[%clk
0:02:51.4]} 17. Rb1 {[%clk 0:02:44.4]} 17... Nb5 {[%clk 0:02:51.1]} 18. Bh3
{[%clk 0:02:39.8]} 18... Bc6 {[%clk 0:02:31.2]} 19. Bxf5 {[%clk 0:02:37.3]}
19... exf5 {[%clk 0:02:32.1]} 20. Qxf5+ {[%clk 0:02:37.2]} 20... Kb8 {[%clk
0:02:32.3]} 21. O-O {[%clk 0:02:36.4]} 21... Rg6 {[%clk 0:02:24.1]} 22. Qd3
{[%clk 0:02:33.8]} 22... Rdg8 {[%clk 0:02:23.9]} 23. Be3 {[%clk 0:02:32.5]}
23... Qd7 {[%clk 0:02:13.3]} 24. a4 {[%clk 0:02:12.7]} 24... Nc7 {[%clk
0:02:10.7]} 25. Qd4 {[%clk 0:02:08.6]} 25... Ne6 {[%clk 0:02:10.1]} 26. Qa7+
{[%clk 0:02:07.8]} 26... Kc7 {[%clk 0:02:10.6]} 27. f5 {[%clk 0:02:01.7]} 27...
d4 {[%clk 0:02:00.4]} 28. fxe6 {[%clk 0:01:22.7]} 28... Qd5 {[%clk 0:01:53.4]}
29. Nf4 {[%clk 0:01:22.5]} 29... Rxg3+ {[%clk 0:01:45.6]} 30. hxg3 {[%clk
0:01:18.7]} 30... Rxg3+ {[%clk 0:01:45.6]} 31. Kf2 {[%clk 0:01:19]} 31... Qf3+
{[%clk 0:01:44.5]} 32. Ke1 {[%clk 0:01:19.3]} 32... Qxe3+ {[%clk 0:01:44.9]} 33.
Ne2 {[%clk 0:01:19.2]} 33... Bf3 {[%clk 0:00:59.5]} 34. Rxb7+ {[%clk 0:01:13.4]}
34... Bxb7 {[%clk 0:00:58.5]} 35. Rxf7+ {[%clk 0:01:14]} 35... Kd8 {[%clk
0:00:56.6]} 36. Qb8+ {[%clk 0:01:13]} 36... Bc8 {[%clk 0:00:56]} 37. Qd6+ {[%clk
0:01:13.6]} 37... Ke8 {[%clk 0:00:55.3]} 38. Qe7# {[%clk 0:01:14.5]} 1-0

[Event "*** SCC Grand Prix: Titled Tuesday Blitz"]
[Site "Chess.com"]
[Date "2020.07.14"]
[Round "2"]
[White "floplover"]
[Black "supertfc"]
[Result "1-0"]
[WhiteElo "2243"]
[BlackElo "2417"]
[TimeControl "180+1"]
[EndTime "10:16:07 PDT"]
[Termination "floplover won by resignation"]

1. d4 {[%clk 0:03:00.9]} 1... Nf6 {[%clk 0:02:59.8]} 2. c4 {[%clk 0:03:01]} 2...
g6 {[%clk 0:02:58.4]} 3. Nc3 {[%clk 0:03:01.2]} 3... d5 {[%clk 0:02:58.5]} 4.
cxd5 {[%clk 0:03:00.9]} 4... Nxd5 {[%clk 0:02:58.8]} 5. e4 {[%clk 0:03:01.4]}
5... Nxc3 {[%clk 0:02:59.2]} 6. bxc3 {[%clk 0:03:02]} 6... Bg7 {[%clk
0:02:59.7]} 7. Be3 {[%clk 0:03:02.1]} 7... c5 {[%clk 0:02:59.2]} 8. Rc1 {[%clk
0:03:02.7]} 8... Qa5 {[%clk 0:02:51.9]} 9. Qd2 {[%clk 0:03:02.4]} 9... cxd4
{[%clk 0:02:44.8]} 10. cxd4 {[%clk 0:03:03.3]} 10... Qxd2+ {[%clk 0:02:44.8]}
11. Bxd2 {[%clk 0:03:04.2]} 11... O-O {[%clk 0:02:42.7]} 12. Nf3 {[%clk
0:03:04]} 12... Bg4 {[%clk 0:02:26.9]} 13. Be3 {[%clk 0:03:03.8]} 13... Bxf3
{[%clk 0:02:25.6]} 14. gxf3 {[%clk 0:03:04.7]} 14... Nc6 {[%clk 0:02:22.7]} 15.
d5 {[%clk 0:03:05.1]} 15... Na5 {[%clk 0:02:19.1]} 16. Bh3 {[%clk 0:02:50.6]}
16... f5 {[%clk 0:01:45.8]} 17. Ke2 {[%clk 0:02:32.6]} 17... Rac8 {[%clk
0:01:41.3]} 18. exf5 {[%clk 0:02:14.7]} 18... gxf5 {[%clk 0:01:32.7]} 19. Bxf5
{[%clk 0:02:08.4]} 19... Rxc1 {[%clk 0:01:21.4]} 20. Be6+ {[%clk 0:02:08.1]}
20... Kh8 {[%clk 0:01:22.3]} 21. Rxc1 {[%clk 0:02:07.8]} 21... Be5 {[%clk
0:01:17.9]} 22. f4 {[%clk 0:01:46.6]} 22... Bf6 {[%clk 0:01:14.9]} 23. Rc7
{[%clk 0:01:44.3]} 23... Ra8 {[%clk 0:00:56.5]} 24. Bd2 {[%clk 0:01:25.4]} 24...
b6 {[%clk 0:00:52.5]} 25. Kd3 {[%clk 0:01:21.2]} 25... Kg7 {[%clk 0:00:46.9]}
26. d6 {[%clk 0:01:08.8]} 26... Kf8 {[%clk 0:00:45.7]} 27. d7 {[%clk 0:01:07.1]}
27... Rd8 {[%clk 0:00:45.5]} 28. Bxa5 {[%clk 0:01:00.8]} 1-0